fUSD/lending_fUSD_20250828
["ID","MTS","AMOUNT","RATE_DAILY","PERIOD"]
[381784853,1756347040996,-400.0,0.00017477,2]
[381784855,1756347041005,-400.0,0.00017477,2]
[381784857,1756347041014,-400.0,0.00017477,2]
[381784859,1756347041024,-400.0,0.00017477,2]
[381784861,1756347041035,-400.0,0.00017477,2]
[381784863,1756347041045,-195.90932039,0.00017477,2]
[381784865,1756347041054,-400.0,0.00017477,2]
[381784867,1756347041064,-400.0,0.00017477,2]
[381784869,1756347041073,-400.0,0.00017477,2]
[381784871,1756347041083,-400.0,0.00017477,2]
[381784873,1756347041093,-400.0,0.00017477,2]
[381784875,1756347041102,-400.0,0.00017477,2]
[381784877,1756347041113,-400.0,0.00017477,2]
[381784879,1756347041123,-400.0,0.00017477,2]
[381784881,1756347041133,-400.0,0.00017477,2]
[381784883,1756347041142,-400.0,0.00017477,2]
[381784885,1756347041151,-5051.82,0.00017477,2]
[381784887,1756347041162,-400.0,0.00017477,2]
[381784889,1756347041171,-500.0,0.00017477,2]
[381784891,1756347041180,-400.0,0.00017477,2]
[381784893,1756347041190,-400.7717817,0.00017477,2]
[381784895,1756347041201,-400.0,0.00017477,2]
[381784897,1756347041211,-400.0,0.00017477,2]
[381784899,1756347041222,-400.45858048,0.00017477,2]
[381784902,1756347041232,-400.0,0.00017477,2]
[381784904,1756347041242,-400.0,0.00017477,2]
[381784906,1756347041251,-400.0,0.00017477,2]
[381784908,1756347041262,-400.0,0.00017477,2]
[381784910,1756347041272,-400.0,0.00017477,2]
[381784912,1756347041282,-400.0,0.00017477,2]
[381784914,1756347041291,-400.0,0.00017477,2]
[381784916,1756347041301,-400.0,0.00017477,2]
[381784918,1756347041311,-400.0,0.00017477,2]
[381784920,1756347041319,-400.0,0.00017477,2]
[381784922,1756347041329,-400.0,0.00017477,2]
[381784924,1756347041342,-400.0,0.00017477,2]
[381784926,1756347041354,-400.0,0.00017477,2]
[381784928,1756347041363,-400.0,0.00017477,2]
[381784930,1756347041373,-400.73166857,0.00017477,2]
[381784932,1756347041382,-2745.3,0.00017477,2]
[381784934,1756347041392,-1000.0,0.00017477,2]
[381784936,1756347041401,-400.0,0.00017477,2]
[381784938,1756347041410,-400.0,0.00017477,2]
[381784940,1756347041419,-400.0,0.00017477,2]
[381784942,1756347041429,-401.33622733,0.00017477,2]
[381784944,1756347041438,-400.0,0.00017477,2]
[381784946,1756347041447,-400.0,0.00017477,2]
[381784948,1756347041457,-400.0,0.00017477,2]
[381784950,1756347041467,-400.0,0.00017477,2]
[381784952,1756347041476,-400.0,0.00017477,2]
[381784954,1756347041485,-400.0,0.00017477,2]
[381784956,1756347041494,-400.0,0.00017477,2]
[381784958,1756347041504,-400.0,0.00017477,2]
[381784960,1756347041514,-400.0,0.00017477,2]
[381784962,1756347041523,-400.0,0.00017477,2]
[381784964,1756347041532,-400.0,0.00017477,2]
[381784966,1756347041541,-400.0,0.00017477,2]
[381784968,1756347041551,-400.0,0.00017477,2]
[381784970,1756347041560,-400.0,0.00017477,2]
[381784972,1756347041570,-400.0,0.00017477,2]
[381784974,1756347041579,-400.0,0.00017477,2]
[381784976,1756347041588,-400.0,0.00017477,2]
[381784978,1756347041598,-400.0,0.00017477,2]
[381784980,1756347041608,-400.0,0.00017477,2]
[381784981,1756347041618,-400.0,0.00017477,2]
[381784984,1756347041627,-400.0,0.00017477,2]
[381784986,1756347041637,-400.0,0.00017477,2]
[381784988,1756347041646,-400.0,0.00017477,2]
[381784990,1756347041656,-400.0,0.00017477,2]
[381784998,1756347041728,-400.0,0.00017477,2]
[381785001,1756347041737,-400.0,0.00017477,2]
[381785002,1756347041746,-400.0,0.00017477,2]
[381785004,1756347041755,-400.0,0.00017477,2]
[381785006,1756347041764,-400.0,0.00017477,2]
[381785008,1756347041773,-401.43460946,0.00017477,2]
[381785010,1756347041782,-400.0,0.00017477,2]
[381785012,1756347041791,-400.0,0.00017477,2]
[381785014,1756347041800,-400.0,0.00017477,2]
[381785017,1756347041811,-400.0,0.00017477,2]
[381785019,1756347041820,-400.0,0.00017477,2]
[381785020,1756347041829,-400.0,0.00017477,2]
[381785022,1756347041838,-400.0,0.00017477,2]
[381785024,1756347041846,-340.55235051,0.00017477,2]
[381785026,1756347041855,-400.0,0.00017477,2]
[381785028,1756347041865,-400.0,0.00017477,2]
[381785030,1756347041874,-400.0,0.00017477,2]
[381785032,1756347041883,-400.0,0.00017477,2]
[381785034,1756347041892,-400.0,0.00017477,2]
[381785036,1756347041902,-400.0,0.00017477,2]
[381785038,1756347041911,-400.0,0.00017477,2]
[381785040,1756347041920,-400.0,0.00017477,2]
[381785042,1756347041929,-400.0,0.00017477,2]
[381785044,1756347041939,-400.0,0.00017477,2]
[381785046,1756347041947,-400.0,0.00017477,2]
[381785048,1756347041957,-400.0,0.00017477,2]
[381785050,1756347041966,-400.0,0.00017477,2]
[381785052,1756347041975,-400.0,0.00017477,2]
[381785054,1756347041984,-400.0,0.00017477,2]
[381785056,1756347041993,-400.0,0.00017477,2]
[381785058,1756347042003,-400.0,0.00017477,2]
[381785060,1756347042013,-400.0,0.00017477,2]
[381785062,1756347042023,-400.0,0.00017477,2]
[381785064,1756347042032,-400.0,0.00017477,2]
[381785066,1756347042041,-400.48218282,0.00017477,2]
[381785068,1756347042050,-400.0,0.00017477,2]
[381785070,1756347042059,-400.0,0.00017477,2]
[381785072,1756347042069,-400.0,0.00017477,2]
[381785074,1756347042078,-400.0,0.00017477,2]
[381785076,1756347042087,-400.0,0.00017477,2]
[381785077,1756347042095,-400.0,0.00017477,2]
[381785079,1756347042104,-400.0,0.00017477,2]
[381785081,1756347042119,-400.0,0.00017477,2]
[381785083,1756347042128,-400.0,0.00017477,2]
[381785085,1756347042137,-400.0,0.00017477,2]
[381785087,1756347042146,-400.0,0.00017477,2]
[381785089,1756347042157,-400.0,0.00017477,2]
[381785091,1756347042167,-400.0,0.00017477,2]
[381785093,1756347042175,-400.0,0.00017477,2]
[381785095,1756347042186,-1589.96,0.00017477,2]
[381785097,1756347042196,-400.0,0.00017477,2]
[381785099,1756347042205,-400.0,0.00017477,2]
[381785101,1756347042215,-400.0,0.00017477,2]
[381785103,1756347042224,-400.0,0.00017477,2]
[381785105,1756347042234,-400.0,0.00017477,2]
[381785107,1756347042243,-500.0,0.00017477,2]
[381785109,1756347042252,-400.0,0.00017477,2]
[381785111,1756347042263,-400.0,0.00017477,2]
[381785113,1756347042272,-1000.0,0.00017477,2]
[381785115,1756347042282,-400.0,0.00017477,2]
[381785117,1756347042291,-400.0,0.00017477,2]
[381785119,1756347042300,-400.0,0.00017477,2]
[381785121,1756347042309,-400.0,0.00017477,2]
[381785123,1756347042319,-400.0,0.00017477,2]
[381785125,1756347042329,-400.0,0.00017477,2]
[381785127,1756347042338,-400.0,0.00017477,2]
[381785129,1756347042348,-402.0461962,0.00017477,2]
[381785131,1756347042366,-400.0,0.00017477,2]
[381785133,1756347042375,-400.0,0.00017477,2]
[381785135,1756347042384,-400.0,0.00017477,2]
[381785137,1756347042394,-488.70593279,0.00017477,2]
[381785139,1756347042403,-400.0,0.00017477,2]
[381785141,1756347042413,-400.0,0.00017477,2]
[381785143,1756347042432,-400.0,0.00017477,2]
[381785145,1756347042442,-400.0,0.00017477,2]
[381785147,1756347042451,-400.0,0.00017477,2]
[381785149,1756347042460,-438.21,0.00017477,2]
[381785151,1756347042469,-400.0,0.00017477,2]
[381785153,1756347042479,-400.0,0.00017477,2]
[381785155,1756347042487,-402.19097395,0.00017477,2]
[381785157,1756347042497,-400.0,0.00017477,2]
[381785159,1756347042508,-400.0,0.00017477,2]
[381785161,1756347042530,-400.0,0.00017477,2]
[381785163,1756347042550,-400.0,0.00017477,2]
[381785165,1756347042567,-400.0,0.00017477,2]
[381785167,1756347042576,-400.0,0.00017477,2]
[381785169,1756347042586,-401.93738273,0.00017477,2]
[381785171,1756347042597,-401.05222913,0.00017477,2]
[381785173,1756347042608,-400.0,0.00017477,2]
[381785175,1756347042617,-400.0,0.00017477,2]
[381785177,1756347042626,-400.0,0.00017477,2]
[381785179,1756347042635,-400.0,0.00017477,2]
[381785181,1756347042644,-400.0,0.00017477,2]
[381785183,1756347042653,-400.0,0.00017477,2]
[381785184,1756347042662,-226.94941576,0.00017477,2]
[381785186,1756347042671,-400.0,0.00017477,2]
[381785188,1756347042680,-400.0,0.00017477,2]
[381785189,1756347042689,-401.92751715,0.00017477,2]
[381785191,1756347042698,-400.0,0.00017477,2]
[381785193,1756347042707,-400.0,0.00017477,2]
[381785195,1756347042717,-401.07269963,0.00017477,2]
[381785196,1756347042726,-400.0,0.00017477,2]
[381785198,1756347042735,-554.44,0.00017477,2]
[381785200,1756347042744,-400.0,0.00017477,2]
[381785202,1756347042753,-548.32371342,0.00017477,2]
[381785203,1756347042762,-453.03144793,0.00017477,2]
[381785205,1756347042771,-400.0,0.00017477,2]
[381785206,1756347042779,-400.0,0.00017477,2]
[381785208,1756347042788,-400.0,0.00017477,2]
[381785209,1756347042798,-400.0,0.00017477,2]
[381785211,1756347042807,-400.0,0.00017477,2]
[381785212,1756347042815,-422.33,0.00017477,2]
[381785214,1756347042824,-400.0,0.00017477,2]
[381785216,1756347042834,-574.28,0.00017477,2]
[381785217,1756347042842,-400.0,0.00017477,2]
[381785219,1756347042851,-401.99298041,0.00017477,2]
[381785221,1756347042860,-400.0,0.00017477,2]
[381785222,1756347042869,-400.0,0.00017477,2]
[381785224,1756347042878,-401.78984845,0.00017477,2]
[381785226,1756347042888,-400.0,0.00017477,2]
[381785228,1756347042897,-400.0,0.00017477,2]
[381785229,1756347042908,-400.0,0.00017477,2]
[381785231,1756347042919,-401.13385496,0.00017477,2]
[381785233,1756347042929,-400.0,0.00017477,2]
[381785234,1756347042938,-400.0,0.00017477,2]
[381785236,1756347042947,-400.0,0.00017477,2]
[381785238,1756347042956,-400.0,0.00017477,2]
[381785239,1756347042967,-484.23,0.00017477,2]
[381785241,1756347042975,-530.46664507,0.00017477,2]
[381785243,1756347042985,-400.0,0.00017477,2]
[381785244,1756347042995,-400.0,0.00017477,2]
[381785246,1756347043004,-400.0,0.00017477,2]
[381785248,1756347043014,-400.0,0.00017477,2]
[381785250,1756347043023,-400.0,0.00017477,2]
[381785252,1756347043032,-400.0,0.00017477,2]
[381785253,1756347043041,-400.0,0.00017477,2]
[381785255,1756347043051,-156.65612283,0.00017477,2]
[381785257,1756347043059,-400.0,0.00017477,2]
[381785259,1756347043068,-400.0,0.00017477,2]
[381785260,1756347043078,-400.0,0.00017477,2]
[381785262,1756347043086,-401.76899826,0.00017477,2]
[381785264,1756347043095,-400.0,0.00017477,2]
[381785265,1756347043104,-400.0,0.00017477,2]
[381785267,1756347043119,-400.0,0.00017477,2]
[381785269,1756347043128,-400.0,0.00017477,2]
[381785271,1756347043137,-400.0,0.00017477,2]
[381785272,1756347043147,-500.0,0.00017477,2]
[381785274,1756347043157,-402.21116235,0.00017477,2]
[381785276,1756347043166,-456.88641958,0.00017477,2]
[381785277,1756347043175,-400.0,0.00017477,2]
[381785279,1756347043184,-400.0,0.00017477,2]
[381785281,1756347043195,-400.0,0.00017477,2]
[381785283,1756347043204,-496.49159893,0.00017477,2]
[381785285,1756347043213,-422.07,0.00017477,2]
[381785287,1756347043222,-400.0,0.00017477,2]
[381785288,1756347043231,-402.1028684,0.00017477,2]
[381785290,1756347043241,-400.0,0.00017477,2]
[381785292,1756347043250,-423.47403736,0.00017477,2]
[381785294,1756347043259,-401.27224273,0.00017477,2]
[381785295,1756347043269,-402.43971601,0.00017477,2]
[381785297,1756347043278,-402.27712761,0.00017477,2]
[381785299,1756347043290,-599.76,0.00017477,2]
[381785301,1756347043303,-400.0,0.00017477,2]
[381785303,1756347043312,-400.0,0.00017477,2]
[381785305,1756347043321,-400.0,0.00017477,2]
[381785306,1756347043331,-1443.76,0.00017477,2]
[381785308,1756347043339,-389.78352529,0.00017477,2]
[381785310,1756347043349,-400.0,0.00017477,2]
[381785312,1756347043358,-402.15964255,0.00017477,2]
[381785314,1756347043367,-402.49482755,0.00017477,2]
[381785316,1756347043376,-400.0,0.00017477,2]
[381785317,1756347043385,-400.0,0.00017477,2]
[381785319,1756347043394,-400.0,0.00017477,2]
[381785321,1756347043403,-401.92159596,0.00017477,2]
[381785323,1756347043413,-400.0,0.00017477,2]
[381785325,1756347043422,-400.0,0.00017477,2]
[381785327,1756347043431,-400.0,0.00017477,2]
[381785328,1756347043440,-401.42275072,0.00017477,2]
[381785330,1756347043449,-401.81930444,0.00017477,2]
[381785332,1756347043459,-400.0,0.00017477,2]
[381785334,1756347043469,-400.0,0.00017477,2]
[381785336,1756347043478,-400.0,0.00017477,2]
[381785337,1756347043487,-400.0,0.00017477,2]
[381785339,1756347043496,-400.0,0.00017477,2]
[381785341,1756347043505,-400.0,0.00017477,2]
[381785343,1756347043514,-400.0,0.00017477,2]
[381785344,1756347043523,-400.0,0.00017477,2]
[381785346,1756347043533,-390.94773279,0.00017477,2]
[381785348,1756347043542,-400.0,0.00017477,2]
[381785350,1756347043551,-400.0,0.00017477,2]
[381785352,1756347043560,-400.89572632,0.00017477,2]
[381785353,1756347043570,-400.0,0.00017477,2]
[381785355,1756347043579,-402.26886848,0.00017477,2]
[381785357,1756347043588,-400.0,0.00017477,2]
[381785359,1756347043597,-400.0,0.00017477,2]
[381785361,1756347043607,-400.0,0.00017477,2]
[381785362,1756347043616,-402.06452858,0.00017477,2]
[381785364,1756347043625,-401.33798788,0.00017477,2]
[381785366,1756347043635,-400.0,0.00017477,2]
[381785368,1756347043644,-400.0,0.00017477,2]
[381785369,1756347043653,-402.40315448,0.00017477,2]
[381785371,1756347043663,-402.17327875,0.00017477,2]
[381785373,1756347043672,-400.0,0.00017477,2]
[381785375,1756347043680,-400.0,0.00017477,2]
[381785377,1756347043690,-401.13036562,0.00017477,2]
[381785378,1756347043699,-401.59144213,0.00017477,2]
[381785380,1756347043708,-400.0,0.00017477,2]
[381785382,1756347043718,-400.0,0.00017477,2]
[381785384,1756347043727,-400.0,0.00017477,2]
[381785386,1756347043736,-400.0,0.00017477,2]
[381785388,1756347043745,-433.4957829,0.00017477,2]
[381785390,1756347043755,-401.2823358,0.00017477,2]
[381785391,1756347043763,-400.0,0.00017477,2]
[381785393,1756347043772,-402.31366961,0.00017477,2]
[381785395,1756347043782,-401.90471091,0.00017477,2]
[381785397,1756347043791,-400.0,0.00017477,2]
[381785399,1756347043800,-400.0,0.00017477,2]
[381785400,1756347043809,-402.25059082,0.00017477,2]
[381785402,1756347043818,-510.22,0.00017477,2]
[381785404,1756347043827,-427.14,0.00017477,2]
[381785406,1756347043837,-400.0,0.00017477,2]
[381785408,1756347043846,-401.73689699,0.00017477,2]
[381785410,1756347043855,-400.0,0.00017477,2]
[381785411,1756347043864,-402.81665257,0.00017477,2]
[381785413,1756347043873,-400.0,0.00017477,2]
[381785415,1756347043883,-500.0,0.00017477,2]
[381785417,1756347043892,-401.1394461,0.00017477,2]
[381785419,1756347043901,-400.0,0.00017477,2]
[381785421,1756347043910,-401.06893651,0.00017477,2]
[381785422,1756347043919,-525.31694652,0.00017477,2]
[381785424,1756347043929,-401.54107352,0.00017477,2]
[381785426,1756347043938,-400.75561447,0.00017477,2]
[381785428,1756347043947,-400.0,0.00017477,2]
[381785430,1756347043957,-401.00078504,0.00017477,2]
[381785432,1756347043967,-400.0,0.00017477,2]
[381785433,1756347043977,-421.86,0.00017477,2]
[381785435,1756347043986,-401.82302148,0.00017477,2]
[381785437,1756347043996,-402.90605428,0.00017477,2]
[381785439,1756347044006,-400.0,0.00017477,2]
[381785441,1756347044015,-400.0,0.00017477,2]
[381785443,1756347044024,-400.0,0.00017477,2]
[381785444,1756347044033,-464.3811977,0.00017477,2]
[381785446,1756347044043,-402.22582709,0.00017477,2]
[381785448,1756347044053,-400.0,0.00017477,2]
[381785450,1756347044065,-400.0,0.00017477,2]
[381785452,1756347044074,-400.0,0.00017477,2]
[381785454,1756347044083,-400.0,0.00017477,2]
[381785456,1756347044092,-400.0,0.00017477,2]
[381785457,1756347044102,-400.0,0.00017477,2]
[381785459,1756347044111,-416.99,0.00017477,2]
[381785461,1756347044122,-402.17002644,0.00017477,2]
[381785463,1756347044131,-400.0,0.00017477,2]
[381785465,1756347044141,-400.0,0.00017477,2]
[381785467,1756347044150,-400.0,0.00017477,2]
[381785469,1756347044161,-256.0134494,0.00017477,2]
[381785471,1756347044170,-400.0,0.00017477,2]
[381785472,1756347044179,-400.0,0.00017477,2]
[381785474,1756347044191,-400.0,0.00017477,2]
[381785476,1756347044201,-400.0,0.00017477,2]
[381785477,1756347044212,-400.0,0.00017477,2]
[381785479,1756347044222,-402.48574279,0.00017477,2]
[381785481,1756347044231,-400.0,0.00017477,2]
[381785483,1756347044240,-400.0,0.00017477,2]
[381785485,1756347044249,-400.0,0.00017477,2]
[381785487,1756347044258,-401.85935745,0.00017477,2]
[381785488,1756347044267,-463.81,0.00017477,2]
[381785490,1756347044277,-400.0,0.00017477,2]
[381785492,1756347044286,-400.0,0.00017477,2]
[381785494,1756347044295,-400.0,0.00017477,2]
[381785496,1756347044305,-400.0,0.00017477,2]
[381785498,1756347044314,-400.0,0.00017477,2]
[381785499,1756347044323,-400.0,0.00017477,2]
[381785501,1756347044333,-441.96,0.00017477,2]
[381785503,1756347044342,-400.0,0.00017477,2]
[381785505,1756347044351,-400.0,0.00017477,2]
[381785507,1756347044360,-400.0,0.00017477,2]
[381785509,1756347044369,-402.06983477,0.00017477,2]
[381785510,1756347044378,-400.0,0.00017477,2]
[381785512,1756347044386,-400.0,0.00017477,2]
[381785514,1756347044396,-400.0,0.00017477,2]
[381785516,1756347044405,-846.83,0.00017477,2]
[381785518,1756347044414,-400.0,0.00017477,2]
[381785520,1756347044423,-422.17275072,0.00017477,2]
[381785522,1756347044433,-403.77428944,0.00017477,2]
[381785523,1756347044443,-400.0,0.00017478,2]
[381785525,1756347044452,-400.0,0.00017514,2]
[381785527,1756347044462,-400.0,0.00017514,2]
[381785529,1756347044471,-400.0,0.00017514,2]
[381785531,1756347044481,-400.0,0.00017515,2]
[381785533,1756347044490,-400.0,0.00017515,2]
[381785534,1756347044499,-400.0,0.00017515,2]
[381785536,1756347044508,-1377.26,0.00017515,2]
[381785538,1756347044517,-400.0,0.00017515,2]
[381785540,1756347044527,-400.0,0.00017515,2]
[381785542,1756347044536,-400.0,0.00017515,2]
[381785544,1756347044545,-400.0,0.00017515,2]
[381785546,1756347044555,-400.0,0.00017515,2]
[381785547,1756347044564,-400.0,0.00017515,2]
[381785549,1756347044574,-550.7862245,0.00017539,2]
[381785551,1756347044584,-926.0,0.00017561,2]
[381785553,1756347044593,-2032.0,0.00017561,2]
[381785555,1756347044602,-1575.0,0.00017561,2]
[381785557,1756347044611,-568.481,0.00017561,2]
[381785559,1756347044620,-599.0,0.00017561,2]
[381785561,1756347044630,-1298.0,0.00017561,2]
[381785562,1756347044639,-718.0,0.00017561,2]
[381785564,1756347044648,-6148.0,0.00017561,2]
[381785566,1756347044657,-21111.0,0.00017561,2]
[381785568,1756347044666,-4156.0,0.00017561,2]
[381785570,1756347044676,-420.0,0.00017578,2]
[381785572,1756347044686,-200.11,0.00017589,2]
[381785574,1756347044695,-1768.90074,0.0001764,2]
[381785575,1756347044704,-461.46099563,0.00017651,2]
[381785577,1756347044714,-1547.0,0.00017666,2]
[381785579,1756347044723,-1465.72,0.000177,2]
[381785581,1756347044732,-1768.90073,0.000177,2]
[381785583,1756347044741,-400.0,0.00017748,2]
[381785585,1756347044750,-492.47,0.00017748,2]
[381785587,1756347044759,-400.0,0.00017748,2]
[381785588,1756347044769,-242.81,0.00017748,2]
[381785590,1756347044778,-400.0,0.00017748,2]
[381785592,1756347044788,-400.0,0.00017748,2]
[381785594,1756347044797,-400.0,0.00017748,2]
[381785596,1756347044806,-410.86,0.00017748,2]
[381785598,1756347044816,-400.0,0.00017748,2]
[381785600,1756347044825,-367.62,0.00017748,2]
[381785601,1756347044834,-400.0,0.00017748,2]
[381785603,1756347044844,-400.0,0.00017748,2]
[381785605,1756347044853,-1538.32,0.00017748,2]
[381785607,1756347044863,-400.0,0.00017748,2]
[381785609,1756347044872,-400.0,0.00017748,2]
[381785611,1756347044881,-400.0,0.00017748,2]
[381785613,1756347044889,-400.0,0.00017748,2]
[381785614,1756347044899,-400.0,0.00017748,2]
[381785616,1756347044908,-400.0,0.00017748,2]
[381785618,1756347044917,-545.00903534,0.00017748,2]
[381785620,1756347044926,-371.8511285,0.00017748,2]
[381785622,1756347044935,-400.0,0.00017749,2]
[381785624,1756347044944,-400.0,0.00017749,2]
[381785626,1756347044953,-400.0,0.00017749,2]
[381785627,1756347044963,-463.29,0.00017749,2]
[381785629,1756347044972,-373.61,0.00017749,2]
[381785631,1756347044982,-400.0,0.00017749,2]
[381785633,1756347044991,-296.9,0.00017749,2]
[381785635,1756347045002,-400.0,0.00017749,2]
[381785637,1756347045011,-400.0,0.00017749,2]
[381785638,1756347045020,-400.0,0.00017749,2]
[381785640,1756347045030,-343.42,0.00017749,2]
[381785642,1756347045039,-400.0,0.00017749,2]
[381785644,1756347045049,-403.89,0.00017749,2]
[381785646,1756347045060,-365.75195386,0.00017749,2]
[381785648,1756347045077,-400.0,0.00017749,2]
[381785650,1756347045089,-400.0,0.00017749,2]
[381785651,1756347045098,-491.8,0.00017749,2]
[381785653,1756347045108,-400.0,0.00017749,2]
[381785655,1756347045121,-546.12,0.00017749,2]
[381785657,1756347045130,-400.0,0.00017749,2]
[381785659,1756347045139,-400.0,0.00017749,2]
[381785661,1756347045150,-400.0,0.00017749,2]
[381785663,1756347045159,-400.0,0.00017749,2]
[381785665,1756347045168,-400.0,0.00017749,2]
[381785667,1756347045177,-400.0,0.00017749,2]
[381785668,1756347045187,-504.22,0.00017749,2]
[381785670,1756347045198,-400.0,0.00017749,2]
[381785672,1756347045207,-151.0,0.00017749,2]
[381785674,1756347045217,-151.0,0.00017749,2]
[381785676,1756347045226,-400.0,0.00017749,2]
[381785678,1756347045235,-614.38,0.00017749,2]
[381785680,1756347045244,-324.6,0.00017749,2]
[381785681,1756347045254,-157.586956,0.00017749,2]
[381785683,1756347045264,-414.32,0.0001775,2]
[381785685,1756347045274,-168.3,0.0001775,2]
[381785687,1756347045284,-289.18,0.0001775,2]
[381785688,1756347045293,-179.22,0.0001775,2]
[381785689,1756347045302,-198.08,0.0001775,2]
[381785690,1756347045312,-320.53,0.0001775,2]
[381785691,1756347045321,-484.22473781,0.0001775,2]
[381785692,1756347045331,-163.15602756,0.0001775,2]
[381785693,1756347045340,-221.21,0.0001775,2]
[381785694,1756347045349,-270.68,0.0001775,2]
[381785695,1756347045360,-400.0,0.0001775,2]
[381785696,1756347045369,-400.0,0.0001775,2]
[381785697,1756347045379,-400.0,0.0001775,2]
[381785698,1756347045388,-400.0,0.0001775,2]
[381785699,1756347045397,-400.0,0.0001775,2]
[381785700,1756347045407,-400.0,0.0001775,2]
[381785701,1756347045416,-400.0,0.0001775,2]
[381785702,1756347045425,-495.71528868,0.0001775,2]
[381785703,1756347045434,-400.0,0.0001775,2]
[381785704,1756347045443,-319.52959268,0.0001775,2]
[381785705,1756347045453,-400.0,0.0001775,2]
[381785706,1756347045462,-400.0,0.0001775,2]
[381785707,1756347045472,-400.0,0.0001775,2]
[381785708,1756347045481,-595.12,0.0001775,2]
[381785709,1756347045491,-402.74,0.0001775,2]
[381785710,1756347045500,-521.76,0.0001775,2]
[381785711,1756347045510,-400.0,0.0001775,2]
[381785712,1756347045520,-160.4731248,0.0001775,2]
[381785713,1756347045529,-400.0,0.0001775,2]
[381785714,1756347045539,-400.0,0.0001775,2]
[381785715,1756347045548,-400.0,0.0001775,2]
[381785716,1756347045558,-400.0,0.0001775,2]
[381785717,1756347045567,-400.0,0.0001775,2]
[381785718,1756347045577,-400.0,0.0001775,2]
[381785720,1756347045586,-400.0,0.0001775,2]
[381785721,1756347045595,-400.0,0.0001775,2]
[381785723,1756347045605,-400.0,0.0001775,2]
[381785725,1756347045614,-400.0,0.0001775,2]
[381785727,1756347045623,-400.0,0.0001775,2]
[381785729,1756347045633,-448.15628717,0.0001775,2]
[381785731,1756347045643,-400.0,0.0001775,2]
[381785733,1756347045653,-507.78092395,0.0001775,2]
[381785735,1756347045663,-400.0,0.0001775,2]
[381785737,1756347045673,-417.20572634,0.0001775,2]
[381785739,1756347045683,-400.0,0.0001775,2]
[381785741,1756347045693,-400.0,0.0001775,2]
[381785743,1756347045702,-400.0,0.0001775,2]
[381785745,1756347045712,-400.0,0.0001775,2]
[381785747,1756347045722,-400.0,0.0001775,2]
[381785749,1756347045732,-400.0,0.0001775,2]
[381785752,1756347045741,-400.0,0.0001775,2]
[381785754,1756347045752,-174.04800788,0.0001775,2]
[381785756,1756347045762,-400.0,0.0001775,2]
[381785757,1756347045771,-400.0,0.0001775,2]
[381785759,1756347045780,-400.0,0.0001775,2]
[381785761,1756347045790,-151.0,0.0001775,2]
[381785776,1756347045912,-400.0,0.0001775,2]
[381785778,1756347045922,-151.0,0.0001775,2]
[381785779,1756347045932,-151.0,0.0001775,2]
[381785781,1756347045943,-156.025143,0.0001775,2]
[381785783,1756347045953,-151.0,0.0001775,2]